fUST/lending_fUST_20260529
["ID","MTS","AMOUNT","RATE_DAILY","PERIOD"]
[423289410,1780032639000,-500.0,9.511e-05,2]
[423289411,1780032639000,-500.0,9.511e-05,2]
[423289416,1780032639000,-500.0,9.513e-05,2]
[423289412,1780032639000,-500.0,9.511e-05,2]
[423289413,1780032639000,-500.0,9.511e-05,2]
[423289424,1780032639000,-500.0,9.514e-05,2]
[423289420,1780032639000,-500.0,9.514e-05,2]
[423289417,1780032639000,-500.0,9.513e-05,2]
[423289422,1780032639000,-500.0,9.514e-05,2]
[423289419,1780032639000,-502.34554448,9.514e-05,2]
[423289429,1780032639000,-211.37732191,9.514e-05,2]
[423289423,1780032639000,-500.0,9.514e-05,2]
[423289427,1780032639000,-500.0,9.514e-05,2]
[423289428,1780032639000,-570.61729315,9.514e-05,2]
[423289426,1780032639000,-1431.46,9.514e-05,2]
[423289418,1780032639000,-539.77850423,9.514e-05,2]
[423289421,1780032639000,-500.0,9.514e-05,2]
[423289431,1780032639000,-500.0,9.514e-05,2]
[423289430,1780032639000,-500.0,9.514e-05,2]
[423289434,1780032639000,-500.0,9.514e-05,2]
[423289463,1780032639000,-500.0,9.515e-05,2]
[423289459,1780032639000,-500.0,9.515e-05,2]
[423289470,1780032639000,-620.01901469,9.515e-05,2]
[423289497,1780032639000,-501.49093844,9.515e-05,2]
[423289500,1780032639000,-3359.3834,9.515e-05,2]
[423289492,1780032639000,-503.16901664,9.515e-05,2]
[423289503,1780032639000,-511.93383107,9.515e-05,2]
[423289513,1780032639000,-500.0,9.516e-05,2]
[423289514,1780032639000,-501.8734997,9.516e-05,2]
[423289512,1780032639000,-500.0,9.516e-05,2]
[423289511,1780032639000,-500.0,9.516e-05,2]
[423289505,1780032639000,-432.78628942,9.515e-05,2]
[423289507,1780032639000,-500.0,9.515e-05,2]
[423289506,1780032639000,-500.0,9.515e-05,2]
[423289510,1780032639000,-500.0,9.516e-05,2]
[423289504,1780032639000,-510.36871016,9.515e-05,2]
[423289509,1780032639000,-500.0,9.516e-05,2]
[423289502,1780032639000,-500.0,9.515e-05,2]
[423289508,1780032639000,-643.02751401,9.516e-05,2]
[423289524,1780032639000,-500.0,9.516e-05,2]
[423289518,1780032639000,-500.0,9.516e-05,2]
[423289525,1780032639000,-500.0,9.516e-05,2]
[423289515,1780032639000,-500.0,9.516e-05,2]
[423289517,1780032639000,-500.0,9.516e-05,2]
[423289522,1780032639000,-500.0,9.516e-05,2]
[423289521,1780032639000,-500.0,9.516e-05,2]
[423289519,1780032639000,-416.41501908,9.516e-05,2]
[423289516,1780032639000,-500.0,9.516e-05,2]
[423289520,1780032639000,-500.0,9.516e-05,2]
[423289523,1780032639000,-500.0,9.516e-05,2]
[423289496,1780032639000,-500.0,9.515e-05,2]
[423289495,1780032639000,-500.0,9.515e-05,2]
[423289466,1780032639000,-500.0,9.515e-05,2]
[423289493,1780032639000,-500.0,9.515e-05,2]
[423289494,1780032639000,-501.55672137,9.515e-05,2]
[423289469,1780032639000,-528.18,9.515e-05,2]
[423289473,1780032639000,-501.47625976,9.515e-05,2]
[423289465,1780032639000,-240.04072389,9.515e-05,2]
[423289471,1780032639000,-500.0,9.515e-05,2]
[423289468,1780032639000,-500.0,9.515e-05,2]
[423289472,1780032639000,-500.0,9.515e-05,2]
[423289458,1780032639000,-500.0,9.515e-05,2]
[423289474,1780032639000,-500.0,9.515e-05,2]
[423289487,1780032639000,-500.0,9.515e-05,2]
[423289479,1780032639000,-605.94555686,9.515e-05,2]
[423289476,1780032639000,-500.0,9.515e-05,2]
[423289482,1780032639000,-500.0,9.515e-05,2]
[423289486,1780032639000,-500.0,9.515e-05,2]
[423289457,1780032639000,-500.0,9.515e-05,2]
[423289480,1780032639000,-500.0,9.515e-05,2]
[423289488,1780032639000,-500.0,9.515e-05,2]
[423289491,1780032639000,-500.0,9.515e-05,2]
[423289499,1780032639000,-500.0,9.515e-05,2]
[423289489,1780032639000,-500.0,9.515e-05,2]
[423289501,1780032639000,-316.38618699,9.515e-05,2]
[423289478,1780032639000,-500.0,9.515e-05,2]
[423289498,1780032639000,-500.0,9.515e-05,2]
[423289490,1780032639000,-500.0,9.515e-05,2]
[423289484,1780032639000,-500.0,9.515e-05,2]
[423289483,1780032639000,-500.0,9.515e-05,2]
[423289485,1780032639000,-500.0,9.515e-05,2]
[423289481,1780032639000,-500.75895288,9.515e-05,2]
[423289477,1780032639000,-500.0,9.515e-05,2]
[423289562,1780032640000,-500.0,9.516e-05,2]
[423289568,1780032640000,-500.0,9.516e-05,2]
[423289567,1780032640000,-500.0,9.516e-05,2]
[423289564,1780032640000,-500.0,9.516e-05,2]
[423289560,1780032640000,-500.0,9.516e-05,2]
[423289558,1780032640000,-500.0,9.516e-05,2]
[423289563,1780032640000,-349.90902062,9.516e-05,2]
[423289561,1780032640000,-500.0,9.516e-05,2]
[423289557,1780032640000,-500.0,9.516e-05,2]
[423289554,1780032640000,-500.0,9.516e-05,2]
[423289569,1780032640000,-500.0,9.516e-05,2]
[423289559,1780032640000,-500.0,9.516e-05,2]
[423289572,1780032640000,-500.0,9.516e-05,2]
[423289583,1780032640000,-500.0,9.516e-05,2]
[423289580,1780032640000,-500.0,9.516e-05,2]
[423289574,1780032640000,-501.89491865,9.516e-05,2]
[423289578,1780032640000,-500.0,9.516e-05,2]
[423289573,1780032640000,-1000.0,9.516e-05,2]
[423289575,1780032640000,-500.0,9.516e-05,2]
[423289579,1780032640000,-500.0,9.516e-05,2]
[423289576,1780032640000,-500.0,9.516e-05,2]
[423289577,1780032640000,-501.36752505,9.516e-05,2]
[423289582,1780032640000,-500.0,9.516e-05,2]
[423289587,1780032640000,-500.0,9.516e-05,2]
[423289586,1780032640000,-221.73963164,9.516e-05,2]
[423289588,1780032640000,-500.0,9.516e-05,2]
[423289556,1780032640000,-500.0,9.516e-05,2]
[423289571,1780032640000,-500.0,9.516e-05,2]
[423289566,1780032640000,-501.28040686,9.516e-05,2]
[423289551,1780032640000,-500.0,9.516e-05,2]
[423289565,1780032640000,-500.0,9.516e-05,2]
[423289597,1780032640000,-500.0,9.516e-05,2]
[423289526,1780032640000,-507.21122395,9.516e-05,2]
[423289527,1780032640000,-500.0,9.516e-05,2]
[423289528,1780032640000,-500.0,9.516e-05,2]
[423289530,1780032640000,-500.0,9.516e-05,2]
[423289529,1780032640000,-500.0,9.516e-05,2]
[423289540,1780032640000,-500.0,9.516e-05,2]
[423289539,1780032640000,-219.19335026,9.516e-05,2]
[423289532,1780032640000,-500.0,9.516e-05,2]
[423289534,1780032640000,-500.0,9.516e-05,2]
[423289531,1780032640000,-500.0,9.516e-05,2]
[423289533,1780032640000,-500.0,9.516e-05,2]
[423289535,1780032640000,-500.0,9.516e-05,2]
[423289555,1780032640000,-500.0,9.516e-05,2]
[423289538,1780032640000,-502.4725039,9.516e-05,2]
[423289537,1780032640000,-500.0,9.516e-05,2]
[423289544,1780032640000,-500.0,9.516e-05,2]
[423289546,1780032640000,-500.0,9.516e-05,2]
[423289552,1780032640000,-493.20192118,9.516e-05,2]
[423289541,1780032640000,-500.0,9.516e-05,2]
[423289550,1780032640000,-500.0,9.516e-05,2]
[423289547,1780032640000,-500.0,9.516e-05,2]
[423289542,1780032640000,-500.0,9.516e-05,2]
[423289543,1780032640000,-500.0,9.516e-05,2]
[423289553,1780032640000,-500.0,9.516e-05,2]
[423289548,1780032640000,-638.24454365,9.516e-05,2]
[423289545,1780032640000,-500.0,9.516e-05,2]
[423289549,1780032640000,-500.0,9.516e-05,2]
[423289536,1780032640000,-500.0,9.516e-05,2]
[423289598,1780032640000,-500.0,9.516e-05,2]
[423289602,1780032640000,-500.0,9.516e-05,2]
[423289649,1780032640000,-500.0,9.517e-05,2]
[423289632,1780032640000,-500.0,9.516e-05,2]
[423289630,1780032640000,-500.0,9.516e-05,2]
[423289621,1780032640000,-500.0,9.516e-05,2]
[423289623,1780032640000,-500.0,9.516e-05,2]
[423289629,1780032640000,-502.69273503,9.516e-05,2]
[423289628,1780032640000,-500.0,9.516e-05,2]
[423289626,1780032640000,-501.65249101,9.516e-05,2]
[423289627,1780032640000,-406.63163193,9.516e-05,2]
[423289620,1780032640000,-500.0,9.516e-05,2]
[423289622,1780032640000,-500.0,9.516e-05,2]
[423289633,1780032640000,-151.0,9.516e-05,2]
[423289635,1780032640000,-501.9589583,9.516e-05,2]
[423289639,1780032640000,-500.0,9.516e-05,2]
[423289631,1780032640000,-501.39003269,9.516e-05,2]
[423289634,1780032640000,-151.0,9.516e-05,2]
[423289641,1780032640000,-500.0,9.516e-05,2]
[423289638,1780032640000,-500.0,9.516e-05,2]
[423289644,1780032640000,-500.0,9.516e-05,2]
[423289640,1780032640000,-502.33354656,9.516e-05,2]
[423289643,1780032640000,-500.0,9.516e-05,2]
[423289642,1780032640000,-500.0,9.516e-05,2]
[423289645,1780032640000,-501.43589391,9.516e-05,2]
[423289650,1780032640000,-500.0,9.517e-05,2]
[423289648,1780032640000,-500.0,9.517e-05,2]
[423289646,1780032640000,-500.0,9.516e-05,2]
[423289647,1780032640000,-500.0,9.517e-05,2]
[423289651,1780032640000,-501.61473944,9.517e-05,2]
[423289589,1780032640000,-500.0,9.516e-05,2]
[423289637,1780032640000,-500.0,9.516e-05,2]
[423289618,1780032640000,-500.0,9.516e-05,2]
[423289636,1780032640000,-323.86576564,9.516e-05,2]
[423289619,1780032640000,-500.0,9.516e-05,2]
[423289624,1780032640000,-500.0,9.516e-05,2]
[423289584,1780032640000,-500.0,9.516e-05,2]
[423289601,1780032640000,-500.0,9.516e-05,2]
[423289585,1780032640000,-500.0,9.516e-05,2]
[423289594,1780032640000,-500.0,9.516e-05,2]
[423289599,1780032640000,-500.0,9.516e-05,2]
[423289600,1780032640000,-500.0,9.516e-05,2]
[423289581,1780032640000,-500.0,9.516e-05,2]
[423289591,1780032640000,-500.0,9.516e-05,2]
[423289603,1780032640000,-500.0,9.516e-05,2]
[423289592,1780032640000,-500.0,9.516e-05,2]
[423289590,1780032640000,-500.0,9.516e-05,2]
[423289595,1780032640000,-500.0,9.516e-05,2]
[423289596,1780032640000,-500.0,9.516e-05,2]
[423289593,1780032640000,-500.0,9.516e-05,2]
[423289610,1780032640000,-187.70351001,9.516e-05,2]
[423289604,1780032640000,-500.0,9.516e-05,2]
[423289613,1780032640000,-500.0,9.516e-05,2]
[423289617,1780032640000,-500.0,9.516e-05,2]
[423289616,1780032640000,-500.0,9.516e-05,2]
[423289607,1780032640000,-502.7447693,9.516e-05,2]
[423289614,1780032640000,-500.0,9.516e-05,2]
[423289608,1780032640000,-502.25226965,9.516e-05,2]
[423289611,1780032640000,-500.0,9.516e-05,2]
[423289605,1780032640000,-500.0,9.516e-05,2]
[423289609,1780032640000,-500.0,9.516e-05,2]
[423289615,1780032640000,-500.0,9.516e-05,2]
[423289606,1780032640000,-500.0,9.516e-05,2]
[423289612,1780032640000,-500.0,9.516e-05,2]
[423289696,1780032641000,-542.6992875,9.788e-05,2]
[423289698,1780032641000,-500.0,9.788e-05,2]
[423289702,1780032641000,-500.0,9.789e-05,2]
[423289703,1780032641000,-500.0,9.789e-05,2]
[423289683,1780032641000,-150.08053657,9.762e-05,2]
[423289692,1780032641000,-500.0,9.787e-05,2]
[423289684,1780032641000,-600.32214628,9.762e-05,2]
[423289685,1780032641000,-1350.72482913,9.762e-05,2]
[423289690,1780032641000,-152.0,9.779e-05,2]
[423289687,1780032641000,-394.23286983,9.762e-05,2]
[423289689,1780032641000,-152.0,9.767e-05,2]
[423289694,1780032641000,-500.0,9.787e-05,2]
[423289688,1780032641000,-450.55185123,9.762e-05,2]
[423289700,1780032641000,-1431.46,9.788e-05,2]
[423289704,1780032641000,-500.0,9.789e-05,2]
[423289693,1780032641000,-500.0,9.787e-05,2]
[423289695,1780032641000,-435.08650861,9.788e-05,2]
[423289699,1780032641000,-500.0,9.788e-05,2]
[423289691,1780032641000,-500.0,9.787e-05,2]
[423289697,1780032641000,-401.60911429,9.788e-05,2]
[423289707,1780032641000,-500.0,9.789e-05,2]
[423289715,1780032641000,-502.27126751,9.789e-05,2]
[423289714,1780032641000,-207.05217935,9.789e-05,2]
[423289706,1780032641000,-500.0,9.789e-05,2]
[423289711,1780032641000,-500.0,9.789e-05,2]
[423289716,1780032641000,-500.0,9.789e-05,2]
[423289709,1780032641000,-500.0,9.789e-05,2]
[423289686,1780032641000,-2401.28858513,9.762e-05,2]
[423289701,1780032641000,-500.0,9.788e-05,2]
[423289680,1780032641000,-16687.72009376,9.732e-05,2]
[423289708,1780032641000,-176.06184146,9.789e-05,2]
[423289681,1780032641000,-1189.38332814,9.732e-05,2]
[423289653,1780032641000,-500.0,9.517e-05,2]
[423289654,1780032641000,-500.0,9.517e-05,2]
[423289652,1780032641000,-500.0,9.517e-05,2]
[423289657,1780032641000,-500.0,9.56e-05,2]
[423289656,1780032641000,-503.02400448,9.517e-05,2]
[423289655,1780032641000,-500.0,9.517e-05,2]
[423289660,1780032641000,-500.0,9.56e-05,2]
[423289666,1780032641000,-500.0,9.56e-05,2]
[423289658,1780032641000,-500.0,9.56e-05,2]
[423289664,1780032641000,-500.0,9.56e-05,2]
[423289661,1780032641000,-500.0,9.56e-05,2]
[423289663,1780032641000,-500.0,9.56e-05,2]
[423289662,1780032641000,-500.0,9.56e-05,2]
[423289682,1780032641000,-152.0,9.747e-05,2]
[423289659,1780032641000,-501.02343158,9.56e-05,2]
[423289668,1780032641000,-290.51127724,9.56e-05,2]
[423289678,1780032641000,-600.0,9.705e-05,2]
[423289672,1780032641000,-573.36819582,9.56e-05,2]
[423289671,1780032641000,-500.0,9.56e-05,2]
[423289674,1780032641000,-374.39995979,9.56e-05,2]
[423289670,1780032641000,-502.19107579,9.56e-05,2]
[423289669,1780032641000,-500.0,9.56e-05,2]
[423289675,1780032641000,-500.0,9.56e-05,2]
[423289667,1780032641000,-136.38719093,9.56e-05,2]
[423289676,1780032641000,-500.0,9.56e-05,2]
[423289673,1780032641000,-500.0,9.56e-05,2]
[423289677,1780032641000,-1975.13930487,9.64e-05,2]
[423289679,1780032641000,-152.0,9.715e-05,2]
[423289665,1780032641000,-449.2394609,9.56e-05,2]
[423289705,1780032641000,-500.0,9.789e-05,2]
[423289710,1780032641000,-500.0,9.789e-05,2]
[423289775,1780032641000,-487.2973656,9.79e-05,2]
[423289749,1780032641000,-541.3030681,9.79e-05,2]
[423289747,1780032641000,-500.0,9.79e-05,2]
[423289752,1780032641000,-500.0,9.79e-05,2]
[423289750,1780032641000,-500.0,9.79e-05,2]
[423289748,1780032641000,-500.0,9.79e-05,2]
[423289753,1780032641000,-500.0,9.79e-05,2]
[423289751,1780032641000,-535.89,9.79e-05,2]
[423289756,1780032641000,-500.0,9.79e-05,2]
[423289757,1780032641000,-503.31952954,9.79e-05,2]
[423289762,1780032641000,-501.47286863,9.79e-05,2]
[423289767,1780032641000,-500.0,9.79e-05,2]
[423289760,1780032641000,-500.0,9.79e-05,2]
[423289764,1780032641000,-603.05202236,9.79e-05,2]
[423289746,1780032641000,-500.0,9.79e-05,2]
[423289765,1780032641000,-500.0,9.79e-05,2]
[423289766,1780032641000,-500.0,9.79e-05,2]
[423289758,1780032641000,-500.0,9.79e-05,2]
[423289759,1780032641000,-585.57151612,9.79e-05,2]
[423289768,1780032641000,-500.0,9.79e-05,2]
[423289763,1780032641000,-502.28075827,9.79e-05,2]
[423289771,1780032641000,-500.0,9.79e-05,2]
[423289770,1780032641000,-504.16325654,9.79e-05,2]
[423289769,1780032641000,-504.34901313,9.79e-05,2]
[423289772,1780032641000,-502.16538834,9.79e-05,2]
[423289777,1780032641000,-500.0,9.79e-05,2]
[423289776,1780032641000,-500.0,9.79e-05,2]
[423289773,1780032641000,-500.0,9.79e-05,2]
[423289774,1780032641000,-500.0,9.79e-05,2]
[423289761,1780032641000,-500.0,9.79e-05,2]
[423289745,1780032641000,-500.0,9.79e-05,2]
[423289712,1780032641000,-505.20018478,9.789e-05,2]
[423289754,1780032641000,-229.00984794,9.79e-05,2]
[423289726,1780032641000,-500.0,9.789e-05,2]
[423289721,1780032641000,-523.8,9.789e-05,2]
[423289724,1780032641000,-500.0,9.789e-05,2]
[423289725,1780032641000,-500.0,9.789e-05,2]
[423289728,1780032641000,-500.0,9.789e-05,2]
[423289713,1780032641000,-500.0,9.789e-05,2]
[423289722,1780032641000,-596.86285797,9.789e-05,2]
[423289727,1780032641000,-500.0,9.789e-05,2]
[423289743,1780032641000,-500.0,9.79e-05,2]
[423289729,1780032641000,-500.0,9.789e-05,2]
[423289723,1780032641000,-152.27590531,9.789e-05,2]
[423289718,1780032641000,-500.0,9.789e-05,2]
[423289717,1780032641000,-500.0,9.789e-05,2]
[423289719,1780032641000,-500.0,9.789e-05,2]
[423289720,1780032641000,-500.0,9.789e-05,2]
[423289736,1780032641000,-232.60201665,9.789e-05,2]
[423289739,1780032641000,-500.0,9.79e-05,2]
[423289744,1780032641000,-500.0,9.79e-05,2]
[423289741,1780032641000,-500.0,9.79e-05,2]
[423289731,1780032641000,-500.0,9.789e-05,2]
[423289740,1780032641000,-500.0,9.79e-05,2]
[423289738,1780032641000,-163.47544485,9.789e-05,2]
[423289755,1780032641000,-500.0,9.79e-05,2]
[423289737,1780032641000,-500.0,9.789e-05,2]
[423289735,1780032641000,-501.1750264,9.789e-05,2]
[423289732,1780032641000,-500.0,9.789e-05,2]
[423289742,1780032641000,-357.26565153,9.79e-05,2]
[423289734,1780032641000,-514.79319145,9.789e-05,2]
[423289733,1780032641000,-500.0,9.789e-05,2]
[423289730,1780032641000,-500.0,9.789e-05,2]
[423289818,1780032642000,-503.34758483,9.79e-05,2]
[423289819,1780032642000,-500.0,9.79e-05,2]
[423289814,1780032642000,-617.82901258,9.79e-05,2]
[423289815,1780032642000,-505.95593646,9.79e-05,2]
[423289817,1780032642000,-500.0,9.79e-05,2]
[423289821,1780032642000,-500.0,9.79e-05,2]
[423289816,1780032642000,-500.0,9.79e-05,2]
[423289813,1780032642000,-500.0,9.79e-05,2]
[423289810,1780032642000,-519.5839314,9.79e-05,2]
[423289812,1780032642000,-322.81013741,9.79e-05,2]
[423289811,1780032642000,-500.0,9.79e-05,2]
[423289820,1780032642000,-500.0,9.79e-05,2]
[423289822,1780032642000,-500.0,9.79e-05,2]
[423289834,1780032642000,-300.0,9.79e-05,2]
[423289824,1780032642000,-502.68435913,9.79e-05,2]
[423289827,1780032642000,-502.52480849,9.79e-05,2]
[423289829,1780032642000,-500.0,9.79e-05,2]
[423289830,1780032642000,-363.12130207,9.79e-05,2]
[423289832,1780032642000,-504.32385879,9.79e-05,2]
[423289828,1780032642000,-265.94031757,9.79e-05,2]
[423289826,1780032642000,-505.87790266,9.79e-05,2]
[423289825,1780032642000,-500.0,9.79e-05,2]
[423289831,1780032642000,-500.0,9.79e-05,2]
[423289833,1780032642000,-500.0,9.79e-05,2]
[423289835,1780032642000,-500.0,9.79e-05,2]
[423289836,1780032642000,-500.0,9.79e-05,2]
[423289843,1780032642000,-504.9552655,9.791e-05,2]
[423289805,1780032642000,-500.0,9.79e-05,2]
[423289823,1780032642000,-558.99594112,9.79e-05,2]
[423289802,1780032642000,-500.0,9.79e-05,2]
[423289788,1780032642000,-500.0,9.79e-05,2]
[423289801,1780032642000,-500.0,9.79e-05,2]
[423289844,1780032642000,-502.40305699,9.791e-05,2]
[423289781,1780032642000,-500.0,9.79e-05,2]
[423289780,1780032642000,-500.0,9.79e-05,2]
[423289778,1780032642000,-500.0,9.79e-05,2]
[423289779,1780032642000,-197.51561021,9.79e-05,2]
[423289782,1780032642000,-500.0,9.79e-05,2]
[423289784,1780032642000,-500.0,9.79e-05,2]
[423289785,1780032642000,-500.0,9.79e-05,2]
[423289783,1780032642000,-500.0,9.79e-05,2]
[423289786,1780032642000,-500.0,9.79e-05,2]
[423289787,1780032642000,-500.0,9.79e-05,2]
[423289790,1780032642000,-500.0,9.79e-05,2]
[423289795,1780032642000,-500.0,9.79e-05,2]
[423289800,1780032642000,-503.62606026,9.79e-05,2]
[423289793,1780032642000,-500.0,9.79e-05,2]
[423289792,1780032642000,-1000.0,9.79e-05,2]
[423289794,1780032642000,-500.0,9.79e-05,2]
[423289789,1780032642000,-500.0,9.79e-05,2]
[423289797,1780032642000,-500.0,9.79e-05,2]
[423289807,1780032642000,-503.66473125,9.79e-05,2]
[423289809,1780032642000,-500.0,9.79e-05,2]
[423289798,1780032642000,-500.0,9.79e-05,2]
[423289803,1780032642000,-500.0,9.79e-05,2]
[423289796,1780032642000,-500.0,9.79e-05,2]
[423289806,1780032642000,-500.0,9.79e-05,2]
[423289808,1780032642000,-500.0,9.79e-05,2]
[423289799,1780032642000,-500.0,9.79e-05,2]
[423289804,1780032642000,-500.0,9.79e-05,2]
[423289791,1780032642000,-500.0,9.79e-05,2]
[423289842,1780032642000,-458.54,9.791e-05,2]
[423289854,1780032642000,-500.0,9.834e-05,2]
[423289838,1780032642000,-500.0,9.79e-05,2]
[423289870,1780032642000,-156.0,9.915e-05,2]
[423289872,1780032642000,-156.0,9.915e-05,2]
[423289875,1780032642000,-651.0,9.915e-05,2]
[423289885,1780032642000,-651.0,9.981e-05,2]
[423289876,1780032642000,-651.0,9.915e-05,2]
[423289867,1780032642000,-172.0,9.915e-05,2]
[423289881,1780032642000,-166.0,9.981e-05,2]
[423289863,1780032642000,-166.0,9.915e-05,2]
[423289869,1780032642000,-156.0,9.915e-05,2]
[423289892,1780032642000,-651.0,9.981e-05,2]
[423289888,1780032642000,-651.0,9.981e-05,2]
[423289839,1780032642000,-500.0,9.79e-05,2]
[423289897,1780032642000,-277.2956793,9.999e-05,2]
[423289859,1780032642000,-500.0,9.834e-05,2]
[423289895,1780032642000,-651.0,9.981e-05,2]
[423289893,1780032642000,-651.0,9.981e-05,2]
[423289887,1780032642000,-651.0,9.981e-05,2]
[423289898,1780032642000,-921.29148162,0.0001,2]
[423289891,1780032642000,-651.0,9.981e-05,2]
[423289899,1780032642000,-921.29148162,0.0001,2]
[423289889,1780032642000,-651.0,9.981e-05,2]
[423289896,1780032642000,-651.0,9.981e-05,2]
[423289901,1780032642000,-1033.79263114,0.0001,2]
[423289900,1780032642000,-1033.79263114,0.0001,2]
[423289904,1780032642000,-1063.00588106,0.0001,2]
[423289903,1780032642000,-1048.44376511,0.0001,2]
[423289902,1780032642000,-1048.44376511,0.0001,2]
[423289905,1780032642000,-1063.00588106,0.0001,2]
[423289894,1780032642000,-651.0,9.981e-05,2]
[423289879,1780032642000,-156.0,9.981e-05,2]
[423289890,1780032642000,-651.0,9.981e-05,2]
[423289886,1780032642000,-651.0,9.981e-05,2]
[423289837,1780032642000,-500.0,9.79e-05,2]
[423289880,1780032642000,-166.0,9.981e-05,2]
[423289840,1780032642000,-500.0,9.79e-05,2]
[423289841,1780032642000,-500.0,9.791e-05,2]
[423289845,1780032642000,-500.0,9.791e-05,2]
[423289850,1780032642000,-500.0,9.834e-05,2]
[423289849,1780032642000,-501.17165467,9.834e-05,2]
[423289847,1780032642000,-500.0,9.791e-05,2]
[423289846,1780032642000,-368.01,9.791e-05,2]
[423289848,1780032642000,-500.0,9.791e-05,2]
[423289856,1780032642000,-500.0,9.834e-05,2]
[423289857,1780032642000,-648.68490596,9.834e-05,2]
[423289855,1780032642000,-500.0,9.834e-05,2]
[423289852,1780032642000,-500.0,9.834e-05,2]
[423289851,1780032642000,-500.0,9.834e-05,2]
[423289853,1780032642000,-500.0,9.834e-05,2]
[423289865,1780032642000,-166.0,9.915e-05,2]
[423289882,1780032642000,-166.0,9.981e-05,2]
[423289877,1780032642000,-651.0,9.915e-05,2]
[423289874,1780032642000,-161.83980679,9.915e-05,2]
[423289871,1780032642000,-156.0,9.915e-05,2]
[423289862,1780032642000,-166.0,9.915e-05,2]
[423289884,1780032642000,-651.0,9.981e-05,2]
[423289873,1780032642000,-156.0,9.915e-05,2]
[423289883,1780032642000,-651.0,9.981e-05,2]
[423289860,1780032642000,-500.0,9.834e-05,2]
[423289858,1780032642000,-500.0,9.834e-05,2]
[423289861,1780032642000,-500.0,9.834e-05,2]
[423289878,1780032642000,-613.39235102,9.915e-05,2]
[423289945,1780032643000,-502.33395217,0.00010064,2]
[423289947,1780032643000,-500.0,0.00010064,2]
[423289950,1780032643000,-500.0,0.00010064,2]
[423289941,1780032643000,-500.0,0.00010064,2]
[423289953,1780032643000,-500.0,0.00010064,2]
[423289940,1780032643000,-503.76761793,0.00010064,2]
[423289944,1780032643000,-500.0,0.00010064,2]
[423289939,1780032643000,-500.0,0.00010063,2]
[423289951,1780032643000,-502.26927581,0.00010064,2]
[423289948,1780032643000,-502.24840379,0.00010064,2]
[423289946,1780032643000,-504.48321178,0.00010064,2]
[423289949,1780032643000,-500.0,0.00010064,2]
[423289954,1780032643000,-502.35258244,0.00010064,2]
[423289977,1780032643000,-501.81451454,0.00010064,2]
[423289965,1780032643000,-500.0,0.00010064,2]
[423289963,1780032643000,-500.0,0.00010064,2]
[423289957,1780032643000,-500.0,0.00010064,2]
[423289956,1780032643000,-573.62925603,0.00010064,2]
[423289959,1780032643000,-500.0,0.00010064,2]
[423289958,1780032643000,-503.38618916,0.00010064,2]
[423289960,1780032643000,-182.50566689,0.00010064,2]
[423289952,1780032643000,-608.02810313,0.00010064,2]
[423289964,1780032643000,-500.0,0.00010064,2]
[423289955,1780032643000,-604.58046437,0.00010064,2]
[423289962,1780032643000,-500.0,0.00010064,2]
[423289976,1780032643000,-634.059691,0.00010064,2]
[423289971,1780032643000,-500.0,0.00010064,2]
[423289943,1780032643000,-500.0,0.00010064,2]
[423289961,1780032643000,-283.37321979,0.00010064,2]
[423289942,1780032643000,-501.54232579,0.00010064,2]
[423289966,1780032643000,-500.0,0.00010064,2]
[423289935,1780032643000,-543.24787484,0.00010063,2]
[423289911,1780032643000,-500.0,0.00010062,2]
[423289906,1780032643000,-500.0,0.00010061,2]
[423289907,1780032643000,-500.0,0.00010061,2]
[423289909,1780032643000,-500.0,0.00010061,2]
[423289910,1780032643000,-500.0,0.00010062,2]
[423289908,1780032643000,-500.0,0.00010061,2]
[423289912,1780032643000,-1431.46,0.00010062,2]
[423289915,1780032643000,-504.53049966,0.00010063,2]
[423289917,1780032643000,-500.0,0.00010063,2]
[423289916,1780032643000,-500.0,0.00010063,2]